bitfinex/quotes_BTCUSD_20250105
["timestamp","ask_amount","ask_price","bid_price","bid_amount"]
[1736095601191,0.0001708,98104.0,98103.0,0.72872489]
[1736095601724,0.0001708,98104.0,98103.0,0.73172489]
[1736095602237,0.0001708,98104.0,98103.0,0.72872489]
[1736095602466,0.0001708,98104.0,98103.0,0.73172489]
[1736095603258,0.0001708,98104.0,98103.0,0.72472489]
[1736095603666,0.0001708,98104.0,98103.0,0.54024489]
[1736095604084,0.0001708,98104.0,98103.0,0.54324489]
[1736095604289,0.0001708,98104.0,98103.0,0.45390329]
[1736095604491,0.0001708,98104.0,98103.0,0.54324489]
[1736095604712,0.0001708,98104.0,98103.0,0.54024489]
[1736095604858,0.0001708,98104.0,98103.0,0.7313607]
[1736095608147,0.0001708,98104.0,98103.0,0.54824489]
[1736095611590,0.0001708,98104.0,98103.0,0.77704479]
[1736095613784,0.0001708,98104.0,98103.0,0.54824489]
[1736095614167,0.0001708,98104.0,98103.0,2.04824489]
[1736095614740,0.0001708,98104.0,98103.0,0.54824489]
[1736095616016,0.0001708,98104.0,98103.0,0.54124489]
[1736095616220,0.0001708,98104.0,98103.0,0.54824489]
[1736095616579,0.0001708,98104.0,98103.0,0.54524489]
[1736095616993,0.0001708,98104.0,98103.0,0.54324489]
[1736095617196,0.0001708,98104.0,98103.0,0.54924489]
[1736095617662,0.0001708,98104.0,98103.0,0.54224489]
[1736095617808,0.0001708,98104.0,98103.0,0.77824892]
[1736095618011,0.00732184,98104.0,98103.0,0.77824892]
[1736095618576,0.00732184,98104.0,98103.0,0.67590732]
[1736095618789,0.00732184,98104.0,98103.0,0.57590732]
[1736095619227,0.00732184,98104.0,98103.0,0.6301258]
[1736095619646,0.00732184,98104.0,98103.0,0.5301258]
[1736095619855,0.00732184,98104.0,98103.0,0.5271258]
[1736095620062,0.33348,98103.0,98102.0,0.13742903]
[1736095620284,0.43746632,98103.0,98102.0,0.13742903]
[1736095620508,0.52170259,98103.0,98102.0,0.13742903]
[1736095620928,0.52170259,98103.0,98102.0,0.23277063]
[1736095621136,0.52170259,98103.0,98102.0,0.33277063]
[1736095621137,0.15713627,98103.0,98102.0,0.33277063]
[1736095621347,0.15713627,98103.0,98102.0,0.23277063]
[1736095621558,0.15713627,98103.0,98102.0,0.1953416]
[1736095621778,0.15713627,98103.0,98102.0,0.1973416]
[1736095621985,0.15713627,98103.0,98102.0,0.1953416]
[1736095622751,0.15713627,98103.0,98102.0,0.1963416]
[1736095623160,0.15713627,98103.0,98102.0,0.1953416]
[1736095623559,0.15713627,98103.0,98102.0,0.1963416]
[1736095623985,0.15713627,98103.0,98102.0,0.1953416]
[1736095625771,0.15,98103.0,98102.0,0.1953416]
[1736095626195,0.15713136,98103.0,98102.0,0.1953416]
[1736095627232,0.15713136,98103.0,98102.0,0.1983416]
[1736095628056,0.15713136,98103.0,98102.0,0.28996854]
[1736095628275,0.15713136,98103.0,98102.0,0.29196854]
[1736095629292,0.00713136,98103.0,98102.0,0.29196854]
[1736095629711,0.0001708,98104.0,98103.0,0.28348]
[1736095629950,0.0001708,98104.0,98103.0,0.3788216]
[1736095630868,0.0001708,98104.0,98103.0,0.94594329]
[1736095631494,0.0001708,98104.0,98103.0,0.95194329]
[1736095631670,0.0001708,98104.0,98103.0,0.94594329]
[1736095631860,0.0001708,98104.0,98103.0,0.71693926]
[1736095632052,0.0001708,98104.0,98103.0,0.72393926]
[1736095632880,0.0001708,98104.0,98103.0,0.72693926]
[1736095633411,0.0001708,98104.0,98103.0,1.09288398]
[1736095633573,0.0001708,98104.0,98103.0,1.32001741]
[1736095633974,0.1001708,98120.0,98119.0,0.4787916]
[1736095634178,0.10022001,98120.0,98119.0,0.66997792]
[1736095634971,0.10022001,98120.0,98119.0,0.56997792]
[1736095635380,0.10022001,98120.0,98119.0,0.57697792]
[1736095635579,0.10022001,98120.0,98119.0,0.67697792]
[1736095635784,0.10022001,98120.0,98119.0,1.01509558]
[1736095635980,0.0001708,98124.0,98123.0,0.1953416]
[1736095637021,0.0001708,98124.0,98123.0,0.1983416]
[1736095637564,0.0001708,98124.0,98123.0,0.54145926]
[1736095638546,0.0001708,98124.0,98123.0,0.72434326]
[1736095639744,0.0001708,98124.0,98123.0,0.54145926]
[1736095641091,0.0001708,98124.0,98123.0,0.72434326]
[1736095643535,0.0001708,98124.0,98123.0,0.74544558]
[1736095643777,0.0001708,98124.0,98123.0,0.84544558]
[1736095644162,0.0001708,98124.0,98123.0,2.34544558]
[1736095644604,0.0001708,98124.0,98123.0,2.34244558]
[1736095645208,0.0001708,98124.0,98123.0,2.35144558]
[1736095646924,0.0001708,98124.0,98123.0,2.33744558]
[1736095647123,0.0001708,98124.0,98123.0,2.34644558]
[1736095647353,0.0001708,98124.0,98123.0,0.64745926]
[1736095647554,0.0001708,98124.0,98123.0,0.65445926]
[1736095647959,0.0001708,98124.0,98123.0,0.85844558]
[1736095648159,0.0001708,98124.0,98123.0,0.64644558]
[1736095648361,0.0001708,98124.0,98123.0,0.75344558]
[1736095648572,0.0001708,98124.0,98123.0,0.75744558]
[1736095649186,0.0001708,98124.0,98123.0,0.55620045]
[1736095649463,0.0001708,98124.0,98123.0,0.54720045]
[1736095649822,0.0001708,98124.0,98123.0,0.55620045]
[1736095650803,0.0001708,98124.0,98123.0,0.41932792]
[1736095651015,0.0001708,98125.0,98124.0,0.3787826]
[1736095651240,0.0001708,98125.0,98124.0,0.48276892]
[1736095651443,0.0001708,98125.0,98124.0,0.38742732]
[1736095651794,0.0001708,98125.0,98124.0,0.48276892]
[1736095652741,0.0001708,98125.0,98124.0,0.58299644]
[1736095653500,0.0001708,98125.0,98124.0,0.47901012]
[1736095653725,0.0001708,98125.0,98124.0,0.48301012]
[1736095655630,0.0001708,98125.0,98124.0,0.3917826]
[1736095656613,0.0001708,98125.0,98124.0,0.3987826]
[1736095660009,0.0001708,98125.0,98124.0,0.398868]
[1736095665291,0.0001708,98125.0,98124.0,0.49009552]
[1736095666118,0.0001708,98125.0,98124.0,0.398868]
[1736095666328,0.0001708,98125.0,98124.0,0.43065543]
[1736095667217,0.0001708,98125.0,98124.0,0.52188295]
[1736095669275,0.0001708,98125.0,98124.0,0.43065543]
[1736095670363,0.0001708,98125.0,98124.0,0.95020345]
[1736095670771,0.0001708,98132.0,98131.0,0.183428]
[1736095670971,0.0001708,98132.0,98131.0,0.2787696]
[1736095671280,0.0001708,98132.0,98131.0,0.2857696]
[1736095672227,0.0001708,98132.0,98131.0,0.2917696]
[1736095673002,0.0001708,98132.0,98131.0,0.37714547]
[1736095673200,0.0001708,98132.0,98131.0,0.38614547]
[1736095673405,0.0001708,98132.0,98131.0,0.41198009]
[1736095673938,0.0001708,98132.0,98131.0,0.37714547]
[1736095674161,0.0001708,98132.0,98131.0,0.62629095]
[1736095674339,0.0001708,98132.0,98131.0,0.658128]
[1736095674608,0.0001708,98132.0,98131.0,0.655128]
[1736095675282,0.0001708,98132.0,98131.0,0.84062471]
[1736095675502,0.0001708,98132.0,98131.0,0.84762471]
[1736095676454,0.0001708,98132.0,98131.0,0.665128]
[1736095677737,0.0001708,98132.0,98131.0,0.89377102]
[1736095677895,0.0001708,98132.0,98131.0,0.89077102]
[1736095678118,0.0001708,98132.0,98131.0,0.89377102]
[1736095678719,0.0001708,98132.0,98131.0,0.655128]
[1736095679127,0.0001708,98132.0,98131.0,0.661128]
[1736095679977,0.0001708,98132.0,98131.0,0.664128]
[1736095680529,0.0001708,98132.0,98131.0,0.764128]
[1736095681989,0.0001708,98132.0,98131.0,1.03862098]
[1736095682394,0.0001708,98132.0,98131.0,2.53862098]
[1736095682764,0.0001708,98132.0,98131.0,2.264128]
[1736095683858,0.0001708,98132.0,98131.0,2.73698998]
[1736095684237,0.0001708,98132.0,98131.0,2.73398998]
[1736095684430,0.0001708,98132.0,98131.0,1.23398998]
[1736095684635,0.0001708,98132.0,98131.0,0.765128]
[1736095684980,0.0001708,98132.0,98131.0,0.761128]
[1736095685672,0.0001708,98132.0,98131.0,1.23398998]
[1736095686034,0.0001708,98132.0,98131.0,1.22798998]
[1736095686233,0.0001708,98132.0,98131.0,1.22098998]
[1736095686469,0.0001708,98132.0,98131.0,1.23598998]
[1736095686642,0.0001708,98132.0,98131.0,1.23998998]
[1736095687043,0.0001708,98132.0,98131.0,1.23598998]
[1736095687452,0.0001708,98132.0,98131.0,1.23998998]
[1736095687855,0.0001708,98132.0,98131.0,1.22798998]
[1736095688214,0.0001708,98132.0,98131.0,1.23198998]
[1736095689381,0.0001708,98132.0,98131.0,1.24098998]
[1736095689560,0.0001708,98132.0,98131.0,1.23198998]
[1736095689757,0.0001708,98132.0,98131.0,0.764128]
[1736095689959,0.0001708,98132.0,98131.0,2.268128]
[1736095690160,0.0001708,98132.0,98131.0,2.259128]
[1736095690511,0.0001708,98132.0,98131.0,1.23698998]
[1736095690924,0.000171,98133.0,98131.0,1.24098998]
[1736095691132,0.000171,98133.0,98132.0,0.13183705]
[1736095692721,0.000171,98133.0,98132.0,0.4693584]
[1736095693022,0.000171,98133.0,98132.0,0.5647]
[1736095693272,0.000171,98133.0,98132.0,0.5727]
[1736095693450,0.000171,98133.0,98132.0,0.5647]
[1736095693656,0.000171,98133.0,98132.0,0.5687]
[1736095694062,0.000171,98133.0,98132.0,0.5777]
[1736095694263,0.000171,98133.0,98132.0,0.5737]
[1736095694460,0.000171,98133.0,98132.0,0.68168632]
[1736095695043,0.000171,98133.0,98132.0,0.67768632]
[1736095695298,0.000171,98133.0,98132.0,0.78168632]
[1736095695661,0.000171,98133.0,98132.0,0.77268632]
[1736095695984,0.000171,98133.0,98132.0,0.78068632]
[1736095696387,0.000171,98133.0,98132.0,0.77268632]
[1736095696591,0.000171,98133.0,98132.0,0.84998632]
[1736095696829,0.000171,98133.0,98132.0,2.35898632]
[1736095697054,0.000171,98133.0,98132.0,2.36398632]
[1736095697259,0.000171,98133.0,98132.0,2.8368483]
[1736095697641,0.000171,98133.0,98132.0,2.8318483]
[1736095697850,0.000171,98133.0,98132.0,2.8368483]
[1736095698459,0.000171,98133.0,98132.0,2.8318483]
[1736095698656,0.000171,98133.0,98132.0,2.8228483]
[1736095699081,0.000171,98133.0,98132.0,2.8318483]
[1736095699394,0.000171,98133.0,98132.0,2.34998632]
[1736095699620,0.000171,98133.0,98132.0,2.35898632]
[1736095699952,0.000171,98133.0,98132.0,2.36398632]
[1736095700379,0.000171,98133.0,98132.0,2.35498632]
[1736095700727,0.000171,98133.0,98132.0,2.35898632]
[1736095700895,0.000171,98133.0,98132.0,2.36298632]
[1736095701300,0.000171,98133.0,98132.0,2.35898632]
[1736095701706,0.000171,98133.0,98132.0,2.36298632]
[1736095702115,0.000171,98133.0,98132.0,2.35398632]
[1736095702522,0.000171,98133.0,98132.0,2.36298632]
[1736095702935,0.000171,98133.0,98132.0,2.35398632]
[1736095703103,0.000171,98133.0,98132.0,2.34998632]
[1736095703309,0.000171,98133.0,98132.0,2.35898632]
[1736095703637,0.000171,98133.0,98132.0,2.34998632]
[1736095704067,0.000171,98133.0,98132.0,2.36198632]
[1736095704397,0.000171,98133.0,98132.0,2.35798632]
[1736095704818,0.000171,98133.0,98132.0,2.36198632]
[1736095705199,0.000171,98133.0,98132.0,2.35398632]
[1736095705628,0.000171,98133.0,98132.0,2.36198632]
[1736095705861,0.000171,98133.0,98132.0,2.28068632]
[1736095706655,0.000171,98133.0,98132.0,2.28085712]
[1736095706856,0.000171,98133.0,98132.0,0.5768708]
[1736095707011,0.000171,98133.0,98132.0,0.54503375]
[1736095707224,0.000171,98133.0,98132.0,0.55203375]
[1736095707421,0.000171,98133.0,98132.0,0.45669215]
[1736095708951,0.000171,98133.0,98132.0,0.55203375]
[1736095709390,0.000171,98133.0,98132.0,0.77319668]
[1736095709699,0.00628775,98133.0,98132.0,0.77519668]
[1736095709859,0.00628775,98133.0,98132.0,0.76919668]
[1736095710059,0.000171,98133.0,98132.0,0.77219668]
[1736095710264,0.000171,98133.0,98132.0,0.54603375]
[1736095710672,0.000171,98133.0,98132.0,0.54003375]
[1736095710874,0.000171,98133.0,98132.0,0.53503375]
[1736095711092,0.000171,98133.0,98132.0,0.54603375]
[1736095711927,0.000171,98133.0,98132.0,2.04603375]
[1736095712606,0.000171,98133.0,98132.0,2.22934463]
[1736095713596,0.000171,98133.0,98132.0,2.04603375]
[1736095716820,0.000171,98133.0,98132.0,0.44369215]
[1736095717235,0.0061337,98133.0,98132.0,0.62698913]
[1736095717455,0.000171,98133.0,98132.0,0.72233073]
[1736095717863,0.00612126,98133.0,98132.0,0.62098913]
[1736095718034,0.000171,98133.0,98132.0,0.62398913]
[1736095718237,0.00611884,98133.0,98132.0,0.1051708]
[1736095718445,0.000171,98133.0,98132.0,0.1051708]
[1736095718643,0.28432464,98133.0,98132.0,0.1005124]
[1736095718867,0.278371,98133.0,98132.0,0.0051708]
[1736095719035,0.38831096,98133.0,98132.0,0.0051708]
[1736095720746,0.38831096,98133.0,98132.0,0.1005124]
[1736095722746,0.38831096,98133.0,98132.0,0.0985124]
[1736095722987,0.38831096,98133.0,98132.0,0.0965124]
[1736095723146,0.28432464,98133.0,98132.0,0.1965124]
[1736095724130,0.28432464,98133.0,98132.0,0.1955124]
[1736095724537,0.28432464,98133.0,98132.0,0.1965124]
[1736095725723,0.28432464,98133.0,98132.0,0.1955124]
[1736095726097,0.28432464,98133.0,98132.0,0.1965124]
[1736095726732,0.28432464,98133.0,98132.0,0.0965124]
[1736095727641,0.28432464,98133.0,98132.0,0.0955124]
[1736095729154,0.28432464,98133.0,98132.0,0.1955124]
[1736095729770,0.28432464,98133.0,98132.0,0.1965124]
[1736095730215,0.28432464,98133.0,98132.0,0.1955124]
[1736095730554,0.28432464,98133.0,98132.0,0.1965124]
[1736095736822,0.23602464,98133.0,98132.0,0.1965124]
[1736095738329,0.15612464,98133.0,98132.0,0.1965124]
[1736095740773,0.15612464,98133.0,98132.0,0.1955124]
[1736095741342,0.15612464,98133.0,98132.0,0.1965124]
[1736095742985,0.15612464,98133.0,98132.0,0.1955124]
[1736095743393,0.15612464,98133.0,98132.0,0.1965124]
[1736095743591,0.15612464,98133.0,98132.0,0.1985124]
[1736095745032,0.00612464,98133.0,98132.0,0.1985124]
[1736095745428,0.000171,98133.0,98132.0,0.1985124]
[1736095746031,0.000171,98133.0,98132.0,0.1975124]
[1736095746232,0.000171,98133.0,98132.0,0.1985124]
[1736095746439,0.000171,98133.0,98132.0,0.1965124]
[1736095746805,0.00519217,98133.0,98132.0,0.1955124]
[1736095746986,0.000171,98133.0,98132.0,0.1955124]
[1736095747210,0.00519459,98133.0,98132.0,0.1965124]
[1736095747382,0.000171,98133.0,98132.0,0.1965124]
[1736095747608,0.00519459,98133.0,98132.0,0.1985124]
[1736095747805,0.000171,98133.0,98132.0,0.1985124]
[1736095747965,0.00519459,98133.0,98132.0,0.1965124]
[1736095748170,0.000171,98133.0,98132.0,0.1985124]
[1736095748373,0.000171,98133.0,98132.0,0.1975124]
[1736095748576,0.000171,98133.0,98132.0,0.1955124]
[1736095749364,0.000171,98133.0,98132.0,0.2025124]
[1736095749592,0.000171,98133.0,98132.0,0.29415737]
[1736095749799,0.000171,98133.0,98132.0,0.29515737]
[1736095750009,0.000171,98133.0,98132.0,0.29715737]
[1736095750426,0.000171,98133.0,98132.0,0.29915737]
[1736095750627,0.000171,98133.0,98132.0,0.2065124]
[1736095750993,0.000171,98133.0,98132.0,0.2025124]
[1736095751173,0.000171,98133.0,98132.0,0.2045124]
[1736095751569,0.000171,98133.0,98132.0,0.2055124]
[1736095751740,0.000171,98133.0,98132.0,0.34297986]
[1736095751939,0.000171,98133.0,98132.0,0.34097986]
[1736095752819,0.000171,98133.0,98132.0,0.33997986]
[1736095753268,0.000171,98133.0,98132.0,0.34197986]
[1736095753471,0.00519868,98133.0,98132.0,0.34397986]
[1736095753648,0.000171,98133.0,98132.0,0.34197986]
[1736095753851,0.00520031,98133.0,98132.0,0.34197986]
[1736095754094,0.00520031,98133.0,98132.0,0.34597986]
[1736095756400,0.000171,98133.0,98132.0,0.34597986]
[1736095756613,0.000171,98133.0,98132.0,0.2085124]
[1736095757592,0.00520027,98133.0,98132.0,0.2085124]
[1736095757817,0.000171,98133.0,98132.0,0.2085124]
[1736095758022,0.00519992,98133.0,98132.0,0.2085124]
[1736095758228,0.000171,98133.0,98132.0,0.2085124]
[1736095758427,0.00519601,98133.0,98132.0,0.2085124]
[1736095758631,0.000171,98133.0,98132.0,0.2085124]
[1736095758860,0.00519292,98133.0,98132.0,0.2085124]
[1736095759068,0.000171,98133.0,98132.0,0.2085124]
[1736095759269,0.00519292,98133.0,98132.0,0.2085124]
[1736095759584,0.00519249,98133.0,98132.0,0.2085124]
[1736095760678,0.00519249,98133.0,98132.0,0.34597986]
[1736095761640,0.00519249,98133.0,98132.0,0.76044893]
[1736095762007,0.000171,98133.0,98132.0,0.76044893]
[1736095763100,0.000171,98133.0,98132.0,0.62298147]
[1736095764253,0.000171,98133.0,98132.0,0.54698147]
[1736095764623,0.000171,98133.0,98132.0,0.44698147]
[1736095764832,0.000171,98133.0,98132.0,0.54698147]
[1736095765013,0.000171,98133.0,98132.0,0.56998147]
[1736095765787,0.000171,98133.0,98132.0,0.46998147]
[1736095766196,0.000171,98133.0,98132.0,0.56998147]
[1736095766603,0.000171,98133.0,98132.0,0.46998147]
[1736095766814,0.000171,98133.0,98132.0,0.56998147]
[1736095768200,0.000171,98133.0,98132.0,0.46998147]
[1736095768415,0.000171,98133.0,98132.0,0.56998147]
[1736095768571,0.01025563,98133.0,98132.0,0.56998147]
[1736095768777,0.01025563,98133.0,98132.0,0.54698147]
[1736095769232,0.000171,98133.0,98132.0,0.54698147]
[1736095769596,0.000171,98133.0,98132.0,0.77618308]
[1736095772347,0.000171,98133.0,98132.0,0.54698147]
[1736095774831,0.000171,98133.0,98132.0,0.77618308]
[1736095775639,0.000171,98133.0,98132.0,0.54698147]
[1736095776440,0.000171,98133.0,98132.0,0.77618308]
[1736095776655,0.000171,98133.0,98132.0,0.67618308]
[1736095776859,0.000171,98133.0,98132.0,0.77618308]
[1736095778453,0.000171,98133.0,98132.0,0.54698147]
[1736095780337,0.000171,98133.0,98132.0,0.44698147]
[1736095780538,0.000171,98133.0,98132.0,0.48473769]
[1736095780755,0.000171,98133.0,98132.0,0.41788032]
[1736095781578,0.000171,98133.0,98132.0,0.64717502]
[1736095782570,0.000171,98133.0,98132.0,0.41788032]
[1736095783569,0.000171,98133.0,98132.0,0.31088032]
[1736095783767,0.000171,98133.0,98132.0,0.31788032]
[1736095783974,0.000171,98133.0,98132.0,0.41788032]
[1736095784563,0.000171,98133.0,98132.0,0.31788032]
[1736095784752,0.000171,98133.0,98132.0,0.41788032]
[1736095787008,0.000171,98133.0,98132.0,0.41088032]
[1736095787209,0.000171,98133.0,98132.0,0.41788032]
[1736095787414,0.000171,98133.0,98132.0,0.31788032]
[1736095787624,0.000171,98133.0,98132.0,0.41788032]
[1736095788434,0.000171,98133.0,98132.0,0.31788032]
[1736095788643,0.000171,98133.0,98132.0,0.41788032]
[1736095790872,0.000171,98133.0,98132.0,0.41796572]
[1736095792299,0.000171,98133.0,98132.0,0.89211263]
[1736095799118,0.000171,98156.0,98146.0,0.123]
[1736095799371,0.000171,98156.0,98154.0,0.283385]
[1736095799580,0.00031149,98155.0,98154.0,2.52586932]
[1736095800636,0.00031149,98155.0,98154.0,2.53486932]
[1736095801478,0.01038726,98188.0,98170.0,0.1953416]
[1736095801685,0.01038726,98188.0,98170.0,0.4016966]
[1736095802938,0.01038726,98188.0,98170.0,0.62623532]
[1736095804842,0.15715862,98180.0,98170.0,0.42688032]
[1736095805088,0.07857931,98180.0,98170.0,0.42688032]
[1736095805293,0.26191731,98180.0,98170.0,0.42688032]
[1736095805503,0.26191731,98180.0,98170.0,0.2113416]
[1736095805707,0.26191731,98180.0,98170.0,0.29668927]
[1736095805911,0.26191731,98180.0,98170.0,0.29368927]
[1736095806115,0.26191731,98180.0,98170.0,0.30268927]
[1736095806330,0.26191731,98180.0,98170.0,0.29668927]
[1736095806502,0.26191731,98180.0,98170.0,0.29368927]
[1736095806716,0.26191731,98180.0,98170.0,0.2073416]
[1736095806939,0.26191731,98180.0,98170.0,0.2103416]
[1736095808119,0.26191731,98180.0,98170.0,0.2053416]
[1736095808684,0.26191731,98180.0,98170.0,0.2023416]
[1736095809040,0.26191731,98180.0,98170.0,0.2063416]
[1736095809285,0.01045608,98171.0,98170.0,0.2063416]
[1736095809491,0.01045608,98171.0,98170.0,0.2023416]
[1736095809694,0.01045608,98171.0,98170.0,0.2093416]
[1736095809842,0.01045608,98171.0,98170.0,0.2133416]
[1736095813840,0.01045608,98171.0,98170.0,0.2063416]
[1736095814064,0.01045608,98171.0,98170.0,0.2133416]
[1736095814277,0.01045608,98171.0,98170.0,0.118]
[1736095814475,0.01045608,98171.0,98170.0,0.2063416]
[1736095815929,0.01045608,98171.0,98170.0,0.011]
[1736095816107,0.1144424,98171.0,98170.0,0.011]
[1736095816317,0.1144424,98171.0,98170.0,0.1063416]
[1736095816727,0.1144424,98171.0,98170.0,0.1023416]
[1736095817024,0.1144424,98171.0,98170.0,0.0973416]
[1736095817395,0.1144424,98171.0,98170.0,0.1003416]
[1736095824542,0.13504188,98171.0,98170.0,0.1003416]
[1736095824905,0.1144424,98171.0,98170.0,0.1003416]
[1736095832106,0.11778983,98171.0,98170.0,0.1003416]
[1736095837181,0.20048983,98171.0,98170.0,0.005]
[1736095837343,0.40646236,98171.0,98170.0,0.005]
[1736095837552,0.45536236,98171.0,98170.0,0.005]
[1736095837763,0.45536236,98171.0,98170.0,0.003]
[1736095838182,0.45536236,98171.0,98170.0,0.004]
[1736095838689,0.266077,98158.0,98157.0,0.09134767]
[1736095838892,0.37006332,98158.0,98156.0,0.0001708]
[1736095839049,0.10398632,98157.0,98156.0,0.0001708]
[1736095839647,0.10733166,98157.0,98156.0,0.0001708]
[1736095840631,0.10733166,98157.0,98156.0,0.0011708]
[1736095842015,0.10733166,98157.0,98156.0,0.0001708]
[1736095842409,0.10733166,98157.0,98156.0,0.0021708]
[1736095843049,0.00334534,98157.0,98156.0,0.1021708]
[1736095843492,0.183367,98164.0,98156.0,0.1021708]
[1736095843706,0.07857931,98170.0,98162.0,0.1]
[1736095843918,0.15,98167.0,98163.0,0.1]
[1736095844795,0.18336,98168.0,98163.0,0.1]
[1736095844999,0.28734632,98168.0,98163.0,0.1]
[1736095846391,0.47170632,98168.0,98163.0,0.1]
[1736095848514,0.47070632,98168.0,98163.0,0.1]
[1736095850913,0.47070632,98168.0,98163.0,0.3]
[1736095854137,0.28734632,98168.0,98163.0,0.3]
[1736095854304,0.47070632,98168.0,98163.0,0.3]
[1736095855303,0.183362,98166.0,98163.0,0.3]
[1736095855497,0.366725,98166.0,98163.0,0.3]
[1736095855904,0.183366,98164.0,98163.0,0.3]
[1736095856205,0.183366,98164.0,98163.0,0.2]
[1736095856418,0.19012183,98164.0,98163.0,0.2]
[1736095858397,0.19012183,98164.0,98163.0,0.301]
[1736095859256,0.19012183,98164.0,98163.0,0.302]
[1736095860051,0.19012183,98164.0,98163.0,0.301]
[1736095860908,0.19012183,98164.0,98163.0,0.3]
[1736095861501,0.19012183,98164.0,98163.0,0.302]
[1736095861723,0.19012183,98164.0,98163.0,0.301]
[1736095862330,0.19012183,98164.0,98163.0,0.302]
[1736095862910,0.19012183,98164.0,98163.0,0.3]
[1736095863334,0.19012183,98164.0,98163.0,0.301]
[1736095864371,0.19012183,98164.0,98163.0,0.302]
[1736095864733,0.19012183,98164.0,98163.0,0.301]
[1736095865125,0.19012183,98164.0,98163.0,0.302]
[1736095865530,0.19012183,98164.0,98163.0,0.301]
[1736095865742,0.19012183,98164.0,98163.0,0.302]
[1736095870987,0.19012183,98164.0,98163.0,0.202]
[1736095872297,0.19020723,98164.0,98163.0,0.202]
[1736095874112,0.19020723,98164.0,98163.0,0.2]
[1736095874511,0.19020723,98164.0,98163.0,0.202]
[1736095875583,0.29419355,98164.0,98163.0,0.202]
[1736095878599,0.29419355,98164.0,98163.0,0.201]
[1736095878812,0.29519355,98164.0,98163.0,0.201]
[1736095879017,0.29519355,98164.0,98163.0,0.2]
[1736095879228,0.29619355,98164.0,98163.0,0.2]
[1736095879461,0.34209355,98164.0,98163.0,0.2]
[1736095879668,0.34309355,98164.0,98163.0,0.2]
[1736095879884,0.42389355,98164.0,98163.0,0.2]
[1736095880260,0.57389355,98164.0,98163.0,0.2]
[1736095880667,0.57189355,98164.0,98163.0,0.2]
[1736095880865,0.57089355,98164.0,98163.0,0.2]
[1736095881098,0.57389355,98164.0,98163.0,0.2]
[1736095881304,0.57189355,98164.0,98163.0,0.2]
[1736095881680,0.57389355,98164.0,98163.0,0.2]
[1736095904341,0.52799355,98164.0,98163.0,0.2]
[1736095915520,0.44719355,98164.0,98163.0,0.2]
[1736095927623,5.57429355,98164.0,98163.0,0.2]
[1736095927860,5.61969355,98164.0,98163.0,0.09885547]
[1736095928041,0.57435195,98164.0,98163.0,0.03773347]
[1736095928337,5.66347303,98164.0,98163.0,6.7e-07]
[1736095928587,0.61147303,98164.0,98163.0,6.7e-07]
[1736095928791,0.63087482,98164.0,98163.0,6.7e-07]
[1736095929603,0.63487482,98164.0,98163.0,6.7e-07]
[1736095929803,0.62987482,98164.0,98163.0,6.7e-07]
[1736095930199,0.63487482,98164.0,98163.0,6.7e-07]
[1736095930776,0.63387482,98164.0,98163.0,6.7e-07]
[1736095930985,0.63687482,98164.0,98163.0,6.7e-07]
[1736095931184,1.14622482,98164.0,98163.0,6.7e-07]
[1736095931391,1.14622482,98164.0,98154.0,0.0001708]
[1736095931392,0.0772,98155.0,98154.0,0.0001708]
[1736095931585,6.07391932,98155.0,98154.0,0.0001708]
[1736095931797,6.12051186,98155.0,98154.0,0.0001708]
[1736095932144,6.22449818,98155.0,98154.0,0.0001708]
[1736095932981,6.12051186,98155.0,98154.0,0.0001708]
[1736095933440,6.14754758,98155.0,98154.0,0.0011708]
[1736095933815,0.183424,98133.0,98132.0,8.54e-05]
[1736095934017,0.79676032,98133.0,98132.0,0.00022589]
[1736095934246,0.80422574,98133.0,98132.0,0.00022589]
[1736095934827,0.80422574,98133.0,98132.0,0.00122589]
[1736095935449,0.80422574,98133.0,98132.0,0.00322589]
[1736095936361,0.80422574,98133.0,98132.0,0.00122589]
[1736095936562,0.80422574,98133.0,98132.0,0.00222589]
[1736095937011,0.80422574,98133.0,98132.0,0.00122589]
[1736095937184,0.80422574,98133.0,98132.0,0.00222589]
[1736095940478,0.81212492,98133.0,98132.0,0.00222589]
[1736095946001,0.81212492,98133.0,98132.0,0.00122589]
[1736095946215,0.81312492,98133.0,98132.0,0.00022589]
[1736095950845,0.81312492,98133.0,98132.0,0.08292589]
[1736095951245,0.81312492,98133.0,98132.0,0.00022589]
[1736095952185,0.81212492,98133.0,98132.0,0.00022589]
[1736095952611,0.81312492,98133.0,98132.0,0.00022589]
[1736095952750,0.81212492,98133.0,98132.0,0.00022589]
[1736095953180,0.81212492,98133.0,98132.0,0.00122589]
[1736095953787,0.81212492,98133.0,98132.0,0.00222589]
[1736095969031,0.96212492,98133.0,98132.0,0.00122589]
[1736095969281,1.03699213,98133.0,98132.0,0.00122589]
[1736095969525,1.03972492,98133.0,98132.0,0.00122589]
[1736095970162,1.03972492,98133.0,98132.0,0.00022589]
[1736095970757,1.04072492,98133.0,98132.0,0.00022589]
[1736095970990,1.03972492,98133.0,98132.0,0.00022589]
[1736095971493,1.04272492,98133.0,98132.0,0.00022589]
[1736095971873,1.04072492,98133.0,98132.0,0.00022589]
[1736095972459,1.03972492,98133.0,98132.0,0.00022589]
[1736095973184,1.14471124,98133.0,98132.0,0.00022589]
[1736095973800,1.14971124,98133.0,98132.0,0.00022589]
[1736095977629,0.333435,98127.0,98126.0,0.0001708]
[1736095977755,0.51502132,98127.0,98126.0,0.0001708]
[1736095978118,1.03177972,98127.0,98126.0,0.0001708]
[1736095978928,1.03377972,98127.0,98126.0,0.0001708]
[1736095979239,0.95617972,98127.0,98126.0,0.0001708]
[1736095979622,0.95617972,98127.0,98126.0,0.1794708]
[1736095979623,0.5187584,98127.0,98126.0,0.1794708]
[1736095980004,0.5187584,98127.0,98126.0,0.2748124]
[1736095980453,0.5187584,98127.0,98126.0,0.3435124]
[1736095980682,0.09136204,98147.0,98135.0,0.0793]
[1736095980906,0.00882269,98140.0,98138.0,0.0953416]
[1736095981139,0.00611759,98146.0,98144.0,0.1]
[1736095981345,0.09136204,98147.0,98144.0,0.1]
[1736095981524,0.00611544,98145.0,98144.0,0.1]
[1736095981742,0.1834,98146.0,98144.0,0.1]
[1736095982045,0.00612566,98145.0,98144.0,0.1]
[1736095982690,0.00612566,98145.0,98144.0,0.101]
[1736095983228,0.00612566,98145.0,98144.0,0.1]
[1736095984756,0.00612566,98145.0,98144.0,0.103]
[1736095985178,0.00612566,98145.0,98144.0,0.102]
[1736095985553,0.00612566,98145.0,98144.0,0.103]
[1736095986937,0.183398,98148.0,98144.0,0.103]
[1736095987187,0.00597,98145.0,98144.0,0.103]
[1736095987342,0.366796,98148.0,98144.0,0.103]